[Event "*** Titled Tuesday Blitz"]
[Site "Chess.com"]
[Date "2018.06.05"]
[Round "6"]
[White "Ali_rastbod"]
[Black "nurmiTV"]
[Result "1/2-1/2"]
[WhiteElo "2515"]
[BlackElo "2497"]
[TimeControl "180+2"]
[EndTime "14:31:10 PDT"]
[Termination "Game drawn - insufficient material"]

1. d4 {[%clk 0:03:01.9]} 1... Nf6 {[%clk 0:03:00.2]} 2. Bg5 {[%clk 0:03:03.1]}
2... e6 {[%clk 0:02:59.6]} 3. Nd2 {[%clk 0:03:01.4]} 3... d5 {[%clk 0:02:59.2]}
4. e3 {[%clk 0:03:02.6]} 4... b6 {[%clk 0:02:59.9]} 5. c3 {[%clk 0:03:01.6]}
5... Be7 {[%clk 0:03:01.3]} 6. Ngf3 {[%clk 0:03:01.3]} 6... Bb7 {[%clk
0:03:02.5]} 7. Bd3 {[%clk 0:03:00.8]} 7... Nbd7 {[%clk 0:03:00.4]} 8. Ne5 {[%clk
0:02:45.1]} 8... h6 {[%clk 0:02:58.1]} 9. Bh4 {[%clk 0:02:44.2]} 9... Nxe5
{[%clk 0:02:21]} 10. dxe5 {[%clk 0:02:44.5]} 10... Nd7 {[%clk 0:02:22.3]} 11.
Bxe7 {[%clk 0:02:44.3]} 11... Qxe7 {[%clk 0:02:24.2]} 12. f4 {[%clk 0:02:19.5]}
12... g5 {[%clk 0:02:20.9]} 13. Qh5 {[%clk 0:02:10.9]} 13... Qc5 {[%clk
0:02:11.8]} 14. Qe2 {[%clk 0:01:40.6]} 14... O-O-O {[%clk 0:02:03]} 15. Nf3
{[%clk 0:01:37.4]} 15... f6 {[%clk 0:01:58]} 16. exf6 {[%clk 0:01:31.3]} 16...
gxf4 {[%clk 0:01:43]} 17. exf4 {[%clk 0:01:30.3]} 17... Rhf8 {[%clk 0:01:37.8]}
18. O-O-O {[%clk 0:01:25.8]} 18... Rxf6 {[%clk 0:01:36.5]} 19. g3 {[%clk
0:01:27.3]} 19... d4 {[%clk 0:01:15.2]} 20. Nxd4 {[%clk 0:01:10.3]} 20... Bxh1
{[%clk 0:01:14.9]} 21. Rxh1 {[%clk 0:01:12.2]} 21... e5 {[%clk 0:01:16.3]} 22.
fxe5 {[%clk 0:00:27.1]} 22... Nxe5 {[%clk 0:01:18.2]} 23. Bc2 {[%clk 0:00:27.7]}
23... Nc4 {[%clk 0:00:45.4]} 24. Kb1 {[%clk 0:00:22.5]} 24... Kb8 {[%clk
0:00:35.3]} 25. Rd1 {[%clk 0:00:23.3]} 25... Rfd6 {[%clk 0:00:33.3]} 26. Qe4
{[%clk 0:00:23.2]} 26... Ne5 {[%clk 0:00:25.1]} 27. Re1 {[%clk 0:00:23]} 27...
Nc6 {[%clk 0:00:24.5]} 28. Ne6 {[%clk 0:00:21.2]} 28... Rxe6 {[%clk 0:00:15]}
29. Qxe6 {[%clk 0:00:23.1]} 29... a5 {[%clk 0:00:14.6]} 30. Qxh6 {[%clk
0:00:24.2]} 30... Qf2 {[%clk 0:00:14]} 31. Qe3 {[%clk 0:00:25]} 31... Qxh2
{[%clk 0:00:14.5]} 32. Be4 {[%clk 0:00:26]} 32... Rd6 {[%clk 0:00:13.4]} 33. Qf3
{[%clk 0:00:23.7]} 33... Nd8 {[%clk 0:00:13]} 34. Rd1 {[%clk 0:00:23.2]} 34...
Rd2 {[%clk 0:00:10.4]} 35. Rxd2 {[%clk 0:00:20.8]} 35... Qxd2 {[%clk 0:00:12.3]}
36. a3 {[%clk 0:00:21.6]} 36... a4 {[%clk 0:00:13]} 37. Bc2 {[%clk 0:00:21.5]}
37... Qe1+ {[%clk 0:00:13.4]} 38. Ka2 {[%clk 0:00:22.4]} 38... Qe6+ {[%clk
0:00:15]} 39. Kb1 {[%clk 0:00:22]} 39... b5 {[%clk 0:00:13.6]} 40. Qf2 {[%clk
0:00:20.9]} 40... Nb7 {[%clk 0:00:14.7]} 41. Qg1 {[%clk 0:00:22]} 41... Nd6
{[%clk 0:00:15.8]} 42. g4 {[%clk 0:00:23.4]} 42... Ne8 {[%clk 0:00:14.5]} 43. g5
{[%clk 0:00:24.8]} 43... Ng7 {[%clk 0:00:16.4]} 44. g6 {[%clk 0:00:26.3]} 44...
Qe7 {[%clk 0:00:17.5]} 45. Qd4 {[%clk 0:00:27.5]} 45... Kb7 {[%clk 0:00:18.3]}
46. Qd5+ {[%clk 0:00:28.7]} 46... c6 {[%clk 0:00:17.6]} 47. Qf7 {[%clk
0:00:29.5]} 47... Qxf7 {[%clk 0:00:19.1]} 48. gxf7 {[%clk 0:00:30.2]} 48... Ne6
{[%clk 0:00:21]} 49. Bf5 {[%clk 0:00:31.4]} 49... Nf8 {[%clk 0:00:22.9]} 50. Kc2
{[%clk 0:00:31.2]} 50... Kc7 {[%clk 0:00:24.8]} 51. Bg4 {[%clk 0:00:30]} 51...
Kd6 {[%clk 0:00:25.9]} 52. Kd3 {[%clk 0:00:30.6]} 52... Ng6 {[%clk 0:00:26.9]}
53. Bh5 {[%clk 0:00:28.1]} 53... Nf8 {[%clk 0:00:25]} 54. Ke4 {[%clk 0:00:26.7]}
54... Ke6 {[%clk 0:00:25]} 55. Be2 {[%clk 0:00:19]} 55... Kxf7 {[%clk
0:00:25.2]} 56. c4 {[%clk 0:00:20.5]} 56... bxc4 {[%clk 0:00:26]} 57. Bxc4+
{[%clk 0:00:22.4]} 57... Ke7 {[%clk 0:00:27.5]} 58. Kd4 {[%clk 0:00:23.2]} 58...
Kd6 {[%clk 0:00:28.4]} 59. Be2 {[%clk 0:00:22.6]} 59... Nd7 {[%clk 0:00:28.4]}
60. Bd1 {[%clk 0:00:22.8]} 60... Nb6 {[%clk 0:00:28.4]} 61. Bc2 {[%clk
0:00:21.5]} 61... c5+ {[%clk 0:00:27.8]} 62. Kc3 {[%clk 0:00:23]} 62... Kd5
{[%clk 0:00:28.6]} 63. Bd1 {[%clk 0:00:23.3]} 63... Ke4 {[%clk 0:00:29.3]} 64.
Bh5 {[%clk 0:00:21.6]} 64... Ke3 {[%clk 0:00:29.3]} 65. Bf7 {[%clk 0:00:22]}
65... Ke4 {[%clk 0:00:30.1]} 66. Bg8 {[%clk 0:00:21.6]} 66... Ke5 {[%clk
0:00:30.8]} 67. Kd3 {[%clk 0:00:22.3]} 67... Kf4 {[%clk 0:00:28.4]} 68. Bf7
{[%clk 0:00:22.2]} 68... Kf3 {[%clk 0:00:27.8]} 69. Ba2 {[%clk 0:00:22.5]} 69...
Kf4 {[%clk 0:00:28.4]} 70. Bb1 {[%clk 0:00:23.1]} 70... Ke5 {[%clk 0:00:24.6]}
71. Bc2 {[%clk 0:00:21.8]} 71... Kd5 {[%clk 0:00:24]} 72. Bd1 {[%clk 0:00:22.8]}
72... Ke5 {[%clk 0:00:22]} 73. Bf3 {[%clk 0:00:22.8]} 73... Kf4 {[%clk
0:00:23.1]} 74. Bh1 {[%clk 0:00:23.4]} 74... Ke5 {[%clk 0:00:22.1]} 75. Bc6
{[%clk 0:00:24.2]} 75... Kf4 {[%clk 0:00:22.5]} 76. Bg2 {[%clk 0:00:23.4]} 76...
Ke5 {[%clk 0:00:23.6]} 77. Kc3 {[%clk 0:00:23.8]} 77... Kd6 {[%clk 0:00:24.3]}
78. b3 {[%clk 0:00:22.4]} 78... axb3 {[%clk 0:00:24.5]} 79. Kxb3 {[%clk
0:00:24.3]} 79... Ke5 {[%clk 0:00:25]} 80. a4 {[%clk 0:00:24.8]} 80... Nxa4
{[%clk 0:00:24.6]} 81. Kxa4 {[%clk 0:00:26.4]} 81... Kd4 {[%clk 0:00:25.9]} 82.
Kb3 {[%clk 0:00:27.8]} 82... c4+ {[%clk 0:00:27.2]} 83. Kc2 {[%clk 0:00:28.3]}
83... c3 {[%clk 0:00:27.9]} 84. Bh1 {[%clk 0:00:27.8]} 84... Ke3 {[%clk
0:00:29.8]} 85. Kxc3 {[%clk 0:00:28]} 1/2-1/2

[Event "*** Titled Tuesday Blitz"]
[Site "Chess.com"]
[Date "2018.06.05"]
[Round "6"]
[White "FranklinAPalomo"]
[Black "Orest_Vovk"]
[Result "1-0"]
[WhiteElo "2330"]
[BlackElo "2380"]
[TimeControl "180+2"]
[EndTime "14:31:22 PDT"]
[Termination "FranklinAPalomo won by resignation"]

1. Nf3 {[%clk 0:03:01.9]} 1... h6 {[%clk 0:02:49.8]} 2. c4 {[%clk 0:03:01.1]}
2... g5 {[%clk 0:02:50.5]} 3. h3 {[%clk 0:03:01.5]} 3... Bg7 {[%clk 0:02:51.3]}
4. Nc3 {[%clk 0:03:02.4]} 4... c5 {[%clk 0:02:51.9]} 5. e3 {[%clk 0:03:01.4]}
5... Nc6 {[%clk 0:02:52]} 6. a3 {[%clk 0:03:00.2]} 6... d6 {[%clk 0:02:52.4]} 7.
Qc2 {[%clk 0:03:01.3]} 7... Nf6 {[%clk 0:02:52.6]} 8. b3 {[%clk 0:03:02.6]} 8...
Bd7 {[%clk 0:02:52.9]} 9. Bb2 {[%clk 0:03:03.9]} 9... Qc8 {[%clk 0:02:53.5]} 10.
Bd3 {[%clk 0:03:05.4]} 10... g4 {[%clk 0:02:50.5]} 11. hxg4 {[%clk 0:03:01.9]}
11... Nxg4 {[%clk 0:02:52.4]} 12. Rc1 {[%clk 0:02:55.5]} 12... Nce5 {[%clk
0:02:52.9]} 13. Nxe5 {[%clk 0:02:52.5]} 13... Nxe5 {[%clk 0:02:54.8]} 14. Be4
{[%clk 0:02:45.9]} 14... Bc6 {[%clk 0:02:53.5]} 15. Ke2 {[%clk 0:02:46.1]} 15...
Qg4+ {[%clk 0:02:52]} 16. Kf1 {[%clk 0:02:41.5]} 16... f5 {[%clk 0:02:51.4]} 17.
Bxc6+ {[%clk 0:02:40.7]} 17... bxc6 {[%clk 0:02:52.3]} 18. Ne2 {[%clk
0:02:41.3]} 18... Qe4 {[%clk 0:02:46.2]} 19. Qxe4 {[%clk 0:02:37.9]} 19... fxe4
{[%clk 0:02:47.9]} 20. Rh4 {[%clk 0:02:35.8]} 20... O-O {[%clk 0:02:36.6]} 21.
Bxe5 {[%clk 0:02:28.7]} 21... Bxe5 {[%clk 0:02:36]} 22. Rxe4 {[%clk 0:02:25.7]}
22... Rab8 {[%clk 0:02:34.6]} 23. Rb1 {[%clk 0:02:24.8]} 23... Rb7 {[%clk
0:02:34.9]} 24. d4 {[%clk 0:02:22]} 24... cxd4 {[%clk 0:02:35.3]} 25. exd4
{[%clk 0:02:23.5]} 25... Bf6 {[%clk 0:02:35.8]} 26. b4 {[%clk 0:02:13.3]} 26...
Rfb8 {[%clk 0:02:31.1]} 27. Re3 {[%clk 0:02:10.5]} 27... a5 {[%clk 0:02:28.4]}
28. Reb3 {[%clk 0:02:11.7]} 28... Kf7 {[%clk 0:02:25.4]} 29. f3 {[%clk
0:01:59.2]} 29... d5 {[%clk 0:02:26]} 30. cxd5 {[%clk 0:01:53]} 30... cxd5
{[%clk 0:02:27.9]} 31. b5 {[%clk 0:01:54.2]} 31... a4 {[%clk 0:02:24.2]} 32. Rb4
{[%clk 0:01:54.6]} 32... e6 {[%clk 0:02:23.1]} 33. Nc3 {[%clk 0:01:49.7]} 33...
Be7 {[%clk 0:02:23]} 34. Rxa4 {[%clk 0:01:47.5]} 34... Rc7 {[%clk 0:02:22.6]}
35. Ne2 {[%clk 0:01:48.8]} 35... Rcb7 {[%clk 0:02:17.4]} 36. Nc3 {[%clk
0:01:34.7]} 36... Rc7 {[%clk 0:02:14.9]} 37. Rb3 {[%clk 0:01:35.9]} 37... Rbc8
{[%clk 0:02:12.2]} 38. Ne2 {[%clk 0:01:36.2]} 38... Rb8 {[%clk 0:01:55.1]} 39.
Ra6 {[%clk 0:01:31.7]} 39... Rc4 {[%clk 0:01:45.7]} 40. a4 {[%clk 0:01:30.3]}
40... e5 {[%clk 0:01:38.4]} 41. dxe5 {[%clk 0:01:14.8]} 41... Bc5 {[%clk
0:01:39.1]} 42. Rd3 {[%clk 0:01:16.2]} 42... Rh4 {[%clk 0:01:38]} 43. g4 {[%clk
0:01:01.8]} 43... Rh2 {[%clk 0:01:17.8]} 44. Rxd5 {[%clk 0:00:59.8]} 44... Be3
{[%clk 0:01:15.2]} 45. e6+ {[%clk 0:00:46.3]} 45... Ke8 {[%clk 0:01:09.4]} 46.
Re5 {[%clk 0:00:35.6]} 46... Bg5 {[%clk 0:00:59.7]} 47. f4 {[%clk 0:00:34.1]}
47... Bh4 {[%clk 0:00:57.3]} 48. e7 {[%clk 0:00:27.2]} 48... Bxe7 {[%clk
0:00:51.8]} 49. Rae6 {[%clk 0:00:27.2]} 49... Rb7 {[%clk 0:00:52.9]} 50. Nd4
{[%clk 0:00:27.9]} 50... Rd7 {[%clk 0:00:48.6]} 51. Re4 {[%clk 0:00:29]} 51...
Kf7 {[%clk 0:00:45.9]} 52. Rxe7+ {[%clk 0:00:28.2]} 52... Rxe7 {[%clk
0:00:46.4]} 53. Rxe7+ {[%clk 0:00:28.5]} 53... Kxe7 {[%clk 0:00:48.3]} 54. a5
{[%clk 0:00:28.9]} 54... Kd6 {[%clk 0:00:44.2]} 55. a6 {[%clk 0:00:29.3]} 55...
Kc7 {[%clk 0:00:42.3]} 56. Nf5 {[%clk 0:00:27.3]} 56... Kb6 {[%clk 0:00:39.3]}
57. Kg1 {[%clk 0:00:28.4]} 57... Rb2 {[%clk 0:00:35]} 58. Nxh6 {[%clk
0:00:29.3]} 58... Rxb5 {[%clk 0:00:36.3]} 59. Kf2 {[%clk 0:00:30.4]} 59... Kxa6
{[%clk 0:00:36.8]} 60. Kg3 {[%clk 0:00:31.6]} 60... Kb6 {[%clk 0:00:37.8]} 61.
g5 {[%clk 0:00:33.1]} 61... Kc6 {[%clk 0:00:35.9]} 62. Kg4 {[%clk 0:00:35]}
62... Kd6 {[%clk 0:00:36.1]} 63. f5 {[%clk 0:00:36.9]} 63... Ke7 {[%clk
0:00:31.9]} 64. Kh5 {[%clk 0:00:35.8]} 64... Kf8 {[%clk 0:00:27.2]} 65. Kg6
{[%clk 0:00:35.7]} 65... Rb6+ {[%clk 0:00:23.7]} 66. f6 {[%clk 0:00:37]} 66...
Ra6 {[%clk 0:00:24.8]} 67. Kh7 {[%clk 0:00:34.9]} 67... Ra7+ {[%clk 0:00:24.4]}
68. Kg6 {[%clk 0:00:35.3]} 68... Ra6 {[%clk 0:00:25.2]} 69. Nf5 {[%clk
0:00:36.9]} 69... Kg8 {[%clk 0:00:20.6]} 70. Ne7+ {[%clk 0:00:38]} 70... Kf8
{[%clk 0:00:21.3]} 71. Nd5 {[%clk 0:00:37.1]} 71... Rd6 {[%clk 0:00:19.9]} 72.
Nf4 {[%clk 0:00:38.3]} 72... Ra6 {[%clk 0:00:18.5]} 73. Kh6 {[%clk 0:00:38.1]}
73... Kf7 {[%clk 0:00:18.7]} 74. Nh5 {[%clk 0:00:39.2]} 74... Ra8 {[%clk
0:00:18]} 75. g6+ {[%clk 0:00:40.2]} 75... Ke6 {[%clk 0:00:19.1]} 76. Kg7 {[%clk
0:00:40]} 76... Kf5 {[%clk 0:00:17.8]} 77. f7 {[%clk 0:00:40.8]} 77... Kg5
{[%clk 0:00:18.3]} 78. Nf6 {[%clk 0:00:39.9]} 78... Kf5 {[%clk 0:00:18.5]} 79.
Nh7 {[%clk 0:00:31.6]} 1-0

[Event "*** Titled Tuesday Blitz"]
[Site "Chess.com"]
[Date "2018.06.05"]
[Round "6"]
[White "Jungle_Jaguar"]
[Black "BlackBoarder"]
[Result "1/2-1/2"]
[WhiteElo "2440"]
[BlackElo "2264"]
[TimeControl "180+2"]
[EndTime "14:31:24 PDT"]
[Termination "Game drawn - insufficient material"]

1. e4 {[%clk 0:03:01.9]} 1... e6 {[%clk 0:02:59.8]} 2. d4 {[%clk 0:02:56]} 2...
d5 {[%clk 0:03:01]} 3. Nc3 {[%clk 0:02:56]} 3... Bb4 {[%clk 0:03:01.6]} 4. Ne2
{[%clk 0:02:53.6]} 4... dxe4 {[%clk 0:03:02.4]} 5. a3 {[%clk 0:02:51.9]} 5...
Be7 {[%clk 0:03:03.3]} 6. Nxe4 {[%clk 0:02:52.2]} 6... Nf6 {[%clk 0:03:04.2]} 7.
Nxf6+ {[%clk 0:02:50.7]} 7... Bxf6 {[%clk 0:03:04.9]} 8. c3 {[%clk 0:02:52.2]}
8... O-O {[%clk 0:03:05.7]} 9. Ng3 {[%clk 0:02:50.9]} 9... Nd7 {[%clk
0:03:03.1]} 10. Bd3 {[%clk 0:02:49]} 10... c5 {[%clk 0:02:58.8]} 11. O-O {[%clk
0:02:48.3]} 11... cxd4 {[%clk 0:02:59.5]} 12. cxd4 {[%clk 0:02:49.8]} 12... Nb6
{[%clk 0:02:56.6]} 13. Be3 {[%clk 0:02:48.8]} 13... Nd5 {[%clk 0:02:54.7]} 14.
Nh5 {[%clk 0:02:46.9]} 14... b6 {[%clk 0:02:45.4]} 15. Qf3 {[%clk 0:02:39.4]}
15... Bb7 {[%clk 0:02:39.3]} 16. Qh3 {[%clk 0:02:33.8]} 16... g6 {[%clk
0:02:32]} 17. Ng3 {[%clk 0:02:32.7]} 17... Bg7 {[%clk 0:02:27.3]} 18. Rad1
{[%clk 0:02:28.2]} 18... Rc8 {[%clk 0:02:27.7]} 19. Ne4 {[%clk 0:02:25.9]} 19...
Qd7 {[%clk 0:01:52.2]} 20. Ng5 {[%clk 0:02:17.8]} 20... Nf6 {[%clk 0:01:50.4]}
21. Be2 {[%clk 0:02:11.9]} 21... Rfd8 {[%clk 0:01:44.7]} 22. Bf3 {[%clk
0:02:12.3]} 22... Bxf3 {[%clk 0:01:44.8]} 23. Nxf3 {[%clk 0:02:14.2]} 23... Rc2
{[%clk 0:01:34]} 24. Rd2 {[%clk 0:02:11.8]} 24... Rdc8 {[%clk 0:01:32.8]} 25.
Ne5 {[%clk 0:02:10.4]} 25... Qd5 {[%clk 0:01:24.8]} 26. Qf3 {[%clk 0:01:48.6]}
26... Qxf3 {[%clk 0:01:25.1]} 27. Nxf3 {[%clk 0:01:49.5]} 27... Nd5 {[%clk
0:01:17.9]} 28. Rfd1 {[%clk 0:01:36.4]} 28... Rxd2 {[%clk 0:01:18.5]} 29. Bxd2
{[%clk 0:01:33.8]} 29... Rc2 {[%clk 0:01:18.1]} 30. b4 {[%clk 0:01:33.1]} 30...
Ra2 {[%clk 0:01:16.9]} 31. Rc1 {[%clk 0:01:30.9]} 31... Rxa3 {[%clk 0:00:54.1]}
32. Rc8+ {[%clk 0:01:31.4]} 32... Bf8 {[%clk 0:00:55.3]} 33. h4 {[%clk
0:01:32.6]} 33... Kg7 {[%clk 0:00:44.7]} 34. Ne5 {[%clk 0:01:31.3]} 34... Bxb4
{[%clk 0:00:40]} 35. Bxb4 {[%clk 0:01:27.8]} 35... Nxb4 {[%clk 0:00:41.2]} 36.
Rc7 {[%clk 0:01:29.4]} 36... a5 {[%clk 0:00:32.6]} 37. Rxf7+ {[%clk 0:01:29]}
37... Kg8 {[%clk 0:00:33.9]} 38. Rb7 {[%clk 0:01:23.4]} 38... Nd5 {[%clk
0:00:33.4]} 39. g4 {[%clk 0:01:17.3]} 39... a4 {[%clk 0:00:30.9]} 40. h5 {[%clk
0:01:18.4]} 40... gxh5 {[%clk 0:00:29.3]} 41. gxh5 {[%clk 0:01:19.6]} 41... Rh3
{[%clk 0:00:24.7]} 42. Ra7 {[%clk 0:01:17.7]} 42... Rxh5 {[%clk 0:00:22.3]} 43.
Rxa4 {[%clk 0:01:18.2]} 43... Kg7 {[%clk 0:00:22]} 44. Ra7+ {[%clk 0:01:17.3]}
44... Kf6 {[%clk 0:00:21.7]} 45. Rf7+ {[%clk 0:01:18.1]} 45... Kg5 {[%clk
0:00:23]} 46. Kg2 {[%clk 0:01:12.3]} 46... Rh6 {[%clk 0:00:19]} 47. Kg3 {[%clk
0:01:03.6]} 47... Rh1 {[%clk 0:00:10.2]} 48. Nf3+ {[%clk 0:00:43.4]} 48... Kh6
{[%clk 0:00:08.6]} 49. Rf8 {[%clk 0:00:41.7]} 49... b5 {[%clk 0:00:07.7]} 50.
Re8 {[%clk 0:00:41.3]} 50... b4 {[%clk 0:00:04.8]} 51. Rxe6+ {[%clk 0:00:42.1]}
51... Kg7 {[%clk 0:00:06.2]} 52. Rd6 {[%clk 0:00:42.8]} 52... Nc3 {[%clk
0:00:04.9]} 53. Rb6 {[%clk 0:00:38.5]} 53... Rb1 {[%clk 0:00:05.5]} 54. Rb7+
{[%clk 0:00:38.9]} 54... Kh6 {[%clk 0:00:03.9]} 55. Ne5 {[%clk 0:00:39.1]} 55...
Ne4+ {[%clk 0:00:04.5]} 56. Kf3 {[%clk 0:00:39.4]} 56... Nd2+ {[%clk 0:00:04.1]}
57. Ke2 {[%clk 0:00:40.6]} 57... Ne4 {[%clk 0:00:04.3]} 58. f3 {[%clk 0:00:41]}
58... Nc3+ {[%clk 0:00:05.5]} 59. Kd3 {[%clk 0:00:41.6]} 59... Nd5 {[%clk
0:00:04.3]} 60. Kc4 {[%clk 0:00:40.8]} 60... Ne3+ {[%clk 0:00:04]} 61. Kd3
{[%clk 0:00:42.1]} 61... Nd5 {[%clk 0:00:05.3]} 62. Rb5 {[%clk 0:00:42.3]} 62...
Nc7 {[%clk 0:00:03.4]} 63. Rb6+ {[%clk 0:00:41]} 63... Kg5 {[%clk 0:00:04.4]}
64. Kc4 {[%clk 0:00:35.1]} 64... h5 {[%clk 0:00:03.9]} 65. Nd3 {[%clk
0:00:25.7]} 65... h4 {[%clk 0:00:03.5]} 66. Nf2 {[%clk 0:00:25.7]} 66... Kf4
{[%clk 0:00:02.6]} 67. Rf6+ {[%clk 0:00:24.2]} 67... Kg3 {[%clk 0:00:03.6]} 68.
Ne4+ {[%clk 0:00:24.2]} 68... Kg2 {[%clk 0:00:04.1]} 69. Ng5 {[%clk 0:00:20.7]}
69... h3 {[%clk 0:00:04.9]} 70. Nxh3 {[%clk 0:00:22]} 70... Kxh3 {[%clk
0:00:06]} 71. Rf7 {[%clk 0:00:21.1]} 71... Kg3 {[%clk 0:00:03.5]} 72. d5 {[%clk
0:00:18.5]} 72... b3 {[%clk 0:00:02.7]} 73. d6 {[%clk 0:00:15.1]} 73... Ne6
{[%clk 0:00:04]} 74. Kd5 {[%clk 0:00:16.4]} 74... Rd1+ {[%clk 0:00:03.4]} 75.
Kxe6 {[%clk 0:00:17.2]} 75... b2 {[%clk 0:00:04.8]} 76. Rb7 {[%clk 0:00:14.1]}
76... b1=Q {[%clk 0:00:05.8]} 77. Rxb1 {[%clk 0:00:15.6]} 77... Rxb1 {[%clk
0:00:07.4]} 78. d7 {[%clk 0:00:17.2]} 78... Rd1 {[%clk 0:00:08.2]} 79. Ke7
{[%clk 0:00:18.7]} 79... Kxf3 {[%clk 0:00:09.7]} 80. d8=Q {[%clk 0:00:20.1]}
80... Rxd8 {[%clk 0:00:11.3]} 81. Kxd8 {[%clk 0:00:22]} 1/2-1/2

[Event "*** Titled Tuesday Blitz"]
[Site "Chess.com"]
[Date "2018.06.05"]
[Round "6"]
[White "TheCount"]
[Black "pKiLz5Rn9b"]
[Result "1-0"]
[WhiteElo "2545"]
[BlackElo "2629"]
[TimeControl "180+2"]
[EndTime "14:32:15 PDT"]
[Termination "TheCount won by resignation"]

1. d4 {[%clk 0:03:01.9]} 1... d5 {[%clk 0:02:59.1]} 2. c4 {[%clk 0:03:02]} 2...
e6 {[%clk 0:03:00]} 3. Nc3 {[%clk 0:03:01.7]} 3... Nf6 {[%clk 0:03:01.1]} 4. Bf4
{[%clk 0:03:02.9]} 4... Be7 {[%clk 0:03:00.9]} 5. e3 {[%clk 0:03:04.2]} 5... O-O
{[%clk 0:03:01.8]} 6. a3 {[%clk 0:03:05.7]} 6... b6 {[%clk 0:03:03]} 7. Nb5
{[%clk 0:03:04.9]} 7... Na6 {[%clk 0:03:02.3]} 8. Nf3 {[%clk 0:03:02.1]} 8...
Bb7 {[%clk 0:02:58.6]} 9. Rc1 {[%clk 0:02:48]} 9... c6 {[%clk 0:02:59.1]} 10.
Nc3 {[%clk 0:02:48.5]} 10... c5 {[%clk 0:03:00.5]} 11. cxd5 {[%clk 0:02:44.6]}
11... exd5 {[%clk 0:03:01]} 12. dxc5 {[%clk 0:02:40]} 12... bxc5 {[%clk
0:03:01]} 13. Be2 {[%clk 0:02:35.4]} 13... Nc7 {[%clk 0:02:58.7]} 14. O-O {[%clk
0:02:33.7]} 14... Ne6 {[%clk 0:02:59.1]} 15. Be5 {[%clk 0:02:28.3]} 15... Rc8
{[%clk 0:02:59.8]} 16. Qa4 {[%clk 0:02:15.2]} 16... Qb6 {[%clk 0:02:58.9]} 17.
Qb5 {[%clk 0:01:40.9]} 17... Rfd8 {[%clk 0:02:59.3]} 18. h3 {[%clk 0:01:39.6]}
18... Nd7 {[%clk 0:02:55.5]} 19. Bg3 {[%clk 0:01:32.2]} 19... Bc6 {[%clk
0:02:53.2]} 20. Qxb6 {[%clk 0:01:27.9]} 20... axb6 {[%clk 0:02:54.4]} 21. Rfd1
{[%clk 0:01:26.9]} 21... Nf6 {[%clk 0:02:55.6]} 22. Ne5 {[%clk 0:01:27]} 22...
Bb7 {[%clk 0:02:55.8]} 23. Na4 {[%clk 0:01:15.6]} 23... Ne4 {[%clk 0:02:44.3]}
24. Nxb6 {[%clk 0:01:08.9]} 24... Nxg3 {[%clk 0:02:42.8]} 25. fxg3 {[%clk
0:00:59.2]} 25... Rc7 {[%clk 0:02:43.4]} 26. Bf3 {[%clk 0:00:33.2]} 26... Bf6
{[%clk 0:02:44.1]} 27. Nd3 {[%clk 0:00:19.4]} 27... c4 {[%clk 0:02:42.8]} 28.
Nb4 {[%clk 0:00:16.5]} 28... Bxb2 {[%clk 0:02:43.1]} 29. Rc2 {[%clk 0:00:16.4]}
29... c3 {[%clk 0:02:41.7]} 30. N6xd5 {[%clk 0:00:15.1]} 30... Rcd7 {[%clk
0:02:40.9]} 31. Nxc3 {[%clk 0:00:12.3]} 31... Rxd1+ {[%clk 0:02:39]} 32. Nxd1
{[%clk 0:00:12.6]} 32... Bxf3 {[%clk 0:02:37.9]} 33. Nxb2 {[%clk 0:00:13.8]}
33... Be4 {[%clk 0:02:37.5]} 34. Rc4 {[%clk 0:00:11.8]} 34... Bb7 {[%clk
0:02:38.6]} 35. N2d3 {[%clk 0:00:11.7]} 35... g5 {[%clk 0:02:38.6]} 36. a4
{[%clk 0:00:12.9]} 36... Ra8 {[%clk 0:02:38.8]} 37. Nc2 {[%clk 0:00:07.3]} 37...
Ba6 {[%clk 0:02:38.8]} 38. Rc3 {[%clk 0:00:07.6]} 38... Bxd3 {[%clk 0:02:38.1]}
39. Rxd3 {[%clk 0:00:09.5]} 39... Rxa4 {[%clk 0:02:39.8]} 40. Nd4 {[%clk
0:00:11.1]} 40... Nc5 {[%clk 0:02:40.5]} 41. Rd1 {[%clk 0:00:09.7]} 41... Kg7
{[%clk 0:02:38.9]} 42. g4 {[%clk 0:00:10.6]} 42... Ne4 {[%clk 0:02:36.1]} 43.
Nf5+ {[%clk 0:00:11.5]} 43... Kf6 {[%clk 0:02:37.1]} 44. Rc1 {[%clk 0:00:10.1]}
44... h5 {[%clk 0:02:33.6]} 45. Rc6+ {[%clk 0:00:09.5]} 45... Ke5 {[%clk
0:02:34.8]} 46. Rc7 {[%clk 0:00:11.1]} 46... hxg4 {[%clk 0:02:34.1]} 47. hxg4
{[%clk 0:00:13]} 47... Nf6 {[%clk 0:02:13.3]} 48. Re7+ {[%clk 0:00:11.6]} 48...
Kd5 {[%clk 0:02:14.2]} 49. Rxf7 {[%clk 0:00:08.3]} 49... Nxg4 {[%clk 0:02:15.4]}
50. e4+ {[%clk 0:00:06.7]} 50... Rxe4 {[%clk 0:02:11]} 51. Ng3 {[%clk
0:00:07.9]} 51... Re3 {[%clk 0:02:10.4]} 52. Rf5+ {[%clk 0:00:06.5]} 52... Ke6
{[%clk 0:02:07.1]} 53. Rf3 {[%clk 0:00:07.3]} 53... Re5 {[%clk 0:02:05.6]} 54.
Nf1 {[%clk 0:00:06.9]} 54... Re1 {[%clk 0:02:06.1]} 55. Rg3 {[%clk 0:00:04.6]}
55... Kf5 {[%clk 0:02:03.2]} 56. Rf3+ {[%clk 0:00:06]} 56... Kg6 {[%clk
0:02:04.7]} 57. Rg3 {[%clk 0:00:07.4]} 57... Nf6 {[%clk 0:02:02.6]} 58. Re3
{[%clk 0:00:08.3]} 58... Ra1 {[%clk 0:02:03.7]} 59. Rf3 {[%clk 0:00:08]} 59...
Nd5 {[%clk 0:02:02.9]} 60. Kh2 {[%clk 0:00:07.8]} 60... g4 {[%clk 0:02:02.9]}
61. Rf8 {[%clk 0:00:08.7]} 61... Re1 {[%clk 0:01:46]} 62. Ng3 {[%clk 0:00:08.6]}
62... Nf6 {[%clk 0:01:41.8]} 63. Rb8 {[%clk 0:00:06.8]} 63... Nd7 {[%clk
0:01:41.2]} 64. Rd8 {[%clk 0:00:07.1]} 64... Ne5 {[%clk 0:01:41.8]} 65. Rg8+
{[%clk 0:00:06.5]} 65... Kf7 {[%clk 0:01:42.2]} 66. Rg5 {[%clk 0:00:07]} 66...
Ke6 {[%clk 0:01:41.3]} 67. Rg8 {[%clk 0:00:06.7]} 67... Kd5 {[%clk 0:01:40.7]}
68. Rd8+ {[%clk 0:00:07.5]} 68... Kc4 {[%clk 0:01:41.9]} 69. Rc8+ {[%clk
0:00:07.8]} 69... Kb5 {[%clk 0:01:41.1]} 70. Rb8+ {[%clk 0:00:08.9]} 70... Kc6
{[%clk 0:01:42.3]} 71. Rg8 {[%clk 0:00:09.9]} 71... Rd1 {[%clk 0:01:38.8]} 72.
Rg5 {[%clk 0:00:09.8]} 72... Rd5 {[%clk 0:01:33.9]} 73. Ne4 {[%clk 0:00:10.7]}
73... Ra5 {[%clk 0:01:24.4]} 74. Kg3 {[%clk 0:00:10.7]} 74... Ra3+ {[%clk
0:01:10.9]} 75. Kf4 {[%clk 0:00:11.3]} 75... Nd3+ {[%clk 0:01:02.2]} 76. Kxg4
{[%clk 0:00:11.3]} 76... Kd7 {[%clk 0:01:00.7]} 77. Nc5+ {[%clk 0:00:10.9]}
77... Nxc5 {[%clk 0:01:00.7]} 78. Rxc5 {[%clk 0:00:12.8]} 78... Ke6 {[%clk
0:01:02.3]} 79. Rf5 {[%clk 0:00:13.4]} 79... Ra2 {[%clk 0:00:57.1]} 80. g3
{[%clk 0:00:13.6]} 80... Ra8 {[%clk 0:00:58]} 81. Rf4 {[%clk 0:00:13.7]} 81...
Rg8+ {[%clk 0:00:59.3]} 82. Kf3 {[%clk 0:00:15]} 82... Rg5 {[%clk 0:01:00.6]}
83. g4 {[%clk 0:00:16.1]} 83... Ra5 {[%clk 0:01:00.8]} 84. Kg3 {[%clk
0:00:17.2]} 84... Ra3+ {[%clk 0:00:52.9]} 85. Kh4 {[%clk 0:00:18.3]} 85... Ke5
{[%clk 0:00:54.3]} 86. Rf5+ {[%clk 0:00:18.6]} 86... Ke6 {[%clk 0:00:55.6]} 87.
Rf1 {[%clk 0:00:19.3]} 87... Ra7 {[%clk 0:00:49.5]} 88. Kh5 {[%clk 0:00:19.6]}
88... Ke7 {[%clk 0:00:16.5]} 89. g5 {[%clk 0:00:18.4]} 89... Ra2 {[%clk
0:00:16.6]} 90. Kh6 {[%clk 0:00:18.5]} 1-0